bitfinex-derivatives/quotes_ETHF0:USTF0_20241104
["timestamp","ask_amount","ask_price","bid_price","bid_amount"]
[1730692114866,1.45485848,2476.7,2476.6,1.00016592]
[1730692115163,1.45485848,2476.7,2476.6,1.58348714]
[1730692115371,1.45485848,2476.7,2476.6,1.58348741]
[1730692118377,1.45485848,2476.7,2476.6,0.8439]
[1730692118571,1.45485848,2476.7,2476.6,1.58350392]
[1730692120172,1.85883848,2476.7,2476.6,1.58350392]
[1730692120562,1.85883848,2476.7,2476.6,1.17950392]
[1730692120771,1.85883848,2476.7,2476.6,0.4399]
[1730692123877,1.45485848,2476.7,2476.5,76.335]
[1730692124073,2.28515848,2476.6,2476.5,76.335]
[1730692125471,6.32275848,2476.6,2476.5,76.335]
[1730692127575,6.37806855,2476.6,2476.5,76.335]
[1730692128570,0.40404,2476.4,2476.2,1.74176]
[1730692128770,1.45485848,2476.3,2476.2,0.8895]
[1730692128979,1.85890848,2476.3,2476.2,0.8895]
[1730692129583,1.91421855,2476.3,2476.2,0.8895]
[1730692130573,1.91421855,2476.3,2476.2,0.4486]
[1730692130779,2.95021855,2476.3,2476.2,0.4486]
[1730692130978,2.95021855,2476.3,2476.1,3.2078]
[1730692130979,2.54616855,2476.3,2476.1,3.2078]
[1730692131182,0.40406,2476.2,2476.1,3.2078]
[1730692131781,0.45937007,2476.2,2476.1,3.2078]
[1730692132979,0.05531007,2476.2,2476.1,3.2078]
[1730692133179,0.05531007,2476.2,2476.1,3.61188]
[1730692133384,0.45937007,2476.2,2476.1,3.2078]
[1730692133884,0.05531007,2476.2,2476.1,3.61188]
[1730692134084,0.05531007,2476.2,2476.1,3.76812436]
[1730692134378,0.45937007,2476.2,2476.1,3.76812436]
[1730692134985,0.45937007,2476.2,2476.1,0.15624436]
[1730692136175,0.05531007,2476.2,2476.1,0.56032436]
[1730692136678,0.05531007,2476.2,2476.1,0.40408]
[1730692136982,0.05531007,2476.2,2476.1,0.56032881]
[1730692138593,0.05531007,2476.2,2476.1,1.14341236]
[1730692139385,0.05531007,2476.2,2476.1,0.56032881]
[1730692139980,0.05531007,2476.2,2476.1,1.14337503]
[1730692140181,0.05531007,2476.2,2476.1,1.14331798]
[1730692140389,0.05531007,2476.2,2476.1,4.59867176]
[1730692140687,1.45485848,2476.4,2476.3,0.40405]
[1730692141383,1.45485848,2476.5,2476.4,0.40401]
[1730692143083,1.45485848,2476.7,2476.6,0.404]
[1730692143288,1.45485848,2477.0,2476.5,6.37605848]
[1730692143595,0.40393,2477.0,2476.9,0.40394]
[1730692143785,1.45485848,2477.0,2476.9,0.40394]
[1730692143982,1.85879848,2477.0,2476.6,0.4587]
[1730692144188,1.85879848,2477.0,2476.8,0.40395]
[1730692144491,1.45485848,2477.2,2477.1,0.40391]
[1730692144682,1.45485848,2477.4,2477.3,0.40388]
[1730692144882,2.09444692,2477.5,2477.4,0.40387]
[1730692145280,2.09444692,2477.5,2477.2,0.4587]
[1730692145486,1.45485848,2477.4,2477.2,0.86258]
[1730692145694,1.45485848,2477.4,2477.3,0.40388]
[1730692146490,1.45485848,2477.4,2477.2,0.4587]
[1730692146491,2.09444692,2477.5,2477.4,0.40387]
[1730692148296,2.09444692,2477.5,2477.4,0.86367]
[1730692151295,2.49829692,2477.5,2477.4,0.86367]
[1730692152295,3.9531554,2477.5,2477.4,0.4598]
[1730692152997,3.9531554,2477.5,2477.4,0.86367]
[1730692153292,2.09444692,2477.5,2477.4,0.86367]
[1730692153485,3.5493054,2477.5,2477.2,0.4587]
[1730692153692,4.66265848,2477.3,2476.9,0.40394]
[1730692153884,4.66265848,2477.3,2476.8,1.30286]
[1730692153885,1.45485848,2476.9,2476.8,1.30286]
[1730692154894,4.6733,2477.3,2476.9,0.40393]
[1730692154895,1.85878848,2477.1,2476.9,0.40393]
[1730692155494,2.48985848,2477.3,2476.9,4.0368]
[1730692155791,4.21741,2477.6,2477.4,0.40386]
[1730692155792,4.66265848,2477.6,2477.4,0.40386]
[1730692155995,0.40385,2477.5,2477.4,0.40386]
[1730692156204,4.0772,2477.9,2477.7,0.40381]
[1730692156205,5.06645848,2477.9,2477.7,0.40381]
[1730692156388,4.66265848,2477.9,2477.7,0.40381]
[1730692156589,5.06644848,2477.9,2477.7,0.40381]
[1730692157002,0.4038,2477.8,2477.7,0.40381]
[1730692157207,5.06644848,2477.9,2477.6,0.4254]
[1730692157401,4.66265848,2477.9,2477.6,0.4254]
[1730692157595,5.06644848,2477.9,2477.7,0.4038]
[1730692158496,1.85864848,2477.9,2477.7,0.4038]
[1730692158695,5.06644848,2477.9,2477.7,0.4038]
[1730692158906,1.85866848,2477.8,2477.6,0.82923]
[1730692159102,1.45485848,2477.8,2477.6,0.4254]
[1730692159402,3.2078,2477.9,2477.6,0.4254]
[1730692159403,3.61159,2477.9,2477.6,0.4254]
[1730692159607,3.2078,2477.9,2477.8,0.4038]
[1730692159900,3.61158,2477.9,2477.8,0.4038]
[1730692160101,3.61158,2477.9,2477.7,0.40381]
[1730692161108,0.40378,2477.9,2477.7,0.40381]
[1730692161296,3.61158,2477.9,2477.7,0.40381]
[1730692161801,0.40378,2477.9,2477.7,0.40381]
[1730692162404,3.61158,2477.9,2477.7,0.40381]
[1730692162698,3.61158,2477.9,2477.8,0.4038]
[1730692163198,3.2078,2477.9,2477.8,0.4038]
[1730692164202,2.0940386,2478.1,2478.0,0.40377]
[1730692164904,2.0940386,2478.1,2478.0,0.82257]
[1730692165100,0.40374,2478.2,2478.0,0.82257]
[1730692165308,0.40375,2478.1,2478.0,0.4188]
[1730692166099,0.40375,2478.1,2478.0,0.82256]
[1730692166300,0.40375,2478.1,2478.0,0.4188]
[1730692166701,4.2428,2478.4,2478.0,0.4188]
[1730692166900,0.40374,2478.2,2478.0,0.82255]
[1730692167502,4.2428,2478.4,2478.1,0.40375]
[1730692167699,0.40374,2478.2,2478.0,0.82256]
[1730692168400,4.2428,2478.4,2478.0,0.4188]
[1730692168612,0.40375,2478.1,2478.0,0.4188]
[1730692168802,0.40375,2478.1,2478.0,0.82257]
[1730692169402,0.40375,2478.1,2478.0,0.4188]
[1730692169907,4.2428,2478.4,2478.0,0.82257]
[1730692170108,4.2428,2478.4,2478.0,0.4188]
[1730692170507,0.40373,2478.3,2478.1,0.40375]
[1730692170703,3.2078,2478.4,2478.3,0.40372]
[1730692171308,3.2078,2478.4,2478.3,4.43892]
[1730692171512,3.2078,2478.4,2478.3,0.40372]
[1730692172514,3.6115,2478.4,2478.3,0.40372]
[1730692172705,3.2078,2478.4,2478.3,0.40372]
[1730692172905,3.6115,2478.4,2478.3,0.40372]
[1730692173109,3.2078,2478.4,2478.3,0.40372]
[1730692173720,3.15169717,2478.7,2478.3,0.40372]
[1730692174008,0.4037,2478.4,2478.2,0.40373]
[1730692174217,0.4037,2478.4,2478.1,0.4425]
[1730692174408,0.4037,2478.4,2478.3,0.40372]
[1730692174915,0.4037,2478.4,2478.1,0.4425]
[1730692175218,0.40372,2478.3,2478.2,0.40373]
[1730692175408,4.16085717,2478.7,2478.1,0.4425]
[1730692175607,0.40373,2478.3,2478.2,0.40373]
[1730692177011,6.35949717,2478.7,2478.1,0.4425]
[1730692177216,0.4037,2478.5,2478.3,0.40371]
[1730692177415,6.35949717,2478.7,2478.3,0.40371]
[1730692177616,0.40372,2478.3,2478.2,0.40372]
[1730692177915,0.40371,2478.4,2478.3,0.40372]
[1730692178219,6.35949717,2478.7,2478.1,0.4425]
[1730692178413,0.4037,2478.5,2478.4,0.4037]
[1730692178914,0.40371,2478.4,2478.3,0.40371]
[1730692179812,1.85806391,2478.5,2478.4,0.4037]
[1730692180015,0.40373,2478.3,2478.2,0.40372]
[1730692180214,0.40371,2478.4,2478.3,0.40371]
[1730692180512,0.4037,2478.4,2478.2,0.40372]
[1730692180914,1.45436391,2478.5,2478.2,0.40374]
[1730692181211,1.45436391,2478.3,2477.9,0.4267]
[1730692181405,0.40377,2478.0,2477.9,1.28958]
[1730692181613,0.40377,2478.1,2478.0,0.40376]
[1730692183014,0.40377,2478.0,2477.9,1.28958]
[1730692183415,1.45436391,2478.2,2477.9,0.8858]
[1730692183615,0.40377,2478.0,2477.9,1.28958]
[1730692184010,0.40376,2478.1,2478.0,0.40377]
[1730692184818,0.40376,2478.1,2477.9,1.28958]
[1730692185004,0.40376,2478.1,2477.9,1.28957]
[1730692185409,0.40376,2478.1,2477.9,0.8858]
[1730692185619,0.40376,2478.1,2478.0,0.40377]
[1730692185918,1.45436391,2478.2,2477.9,0.8858]
[1730692186218,0.40375,2478.1,2478.0,0.40376]
[1730692187513,1.85811391,2478.2,2478.0,0.40376]
[1730692187908,2.48736391,2478.3,2477.9,0.8858]
[1730692188119,2.48736391,2478.3,2478.0,0.83166]
[1730692188120,0.40374,2478.2,2478.0,0.83166]
[1730692188711,2.48736391,2478.3,2478.0,0.83166]
[1730692188916,0.40374,2478.2,2478.0,0.83166]
[1730692192228,2.48736391,2478.3,2478.0,0.83166]
[1730692192229,0.40375,2478.1,2478.0,0.83166]
[1730692193320,2.48736391,2478.3,2478.0,0.83166]
[1730692193520,0.40374,2478.2,2478.0,0.83166]
[1730692194122,0.40375,2478.1,2478.0,0.4279]
[1730692194619,0.40375,2478.1,2478.0,0.83167]
[1730692197924,0.40375,2478.1,2478.0,0.4279]
[1730692198325,0.40375,2478.1,2478.0,0.83167]
[1730692198916,2.48736391,2478.3,2478.0,0.83167]
[1730692198917,0.40374,2478.2,2478.1,0.40375]
[1730692199323,0.40375,2478.1,2478.0,0.83166]
[1730692199521,0.40375,2478.1,2478.0,0.4279]
[1730692200033,0.40375,2478.1,2478.0,0.83167]
[1730692200328,2.48736391,2478.3,2478.0,0.83167]
[1730692200532,1.033,2478.3,2478.2,0.40374]
[1730692200727,0.40371,2478.4,2478.3,0.40372]
[1730692201024,1.43669,2478.5,2478.3,0.4037]
[1730692201221,1.033,2478.5,2478.4,1.2861]
[1730692201620,1.43669,2478.5,2478.4,1.2861]
[1730692201831,1.033,2478.5,2478.4,1.2861]
[1730692202832,1.85804391,2478.6,2478.4,0.8824]
[1730692203128,1.45436391,2478.6,2478.5,0.40369]
[1730692203329,1.85803391,2478.6,2478.5,0.40369]
[1730692203932,1.85803391,2478.6,2478.4,1.28609]
[1730692204232,0.40369,2478.5,2478.4,0.8824]
[1730692204628,0.40369,2478.5,2478.4,1.2861]
[1730692205628,1.45436391,2478.6,2478.4,77.6211]
[1730692205830,1.85804391,2478.6,2478.4,77.6211]
[1730692206938,1.43666,2478.7,2478.5,0.40369]
[1730692207526,0.40367,2478.6,2478.5,0.40369]
[1730692207731,1.43666,2478.7,2478.5,0.40369]
[1730692207925,1.43666,2478.7,2478.5,0.40368]
[1730692208224,1.43666,2478.7,2478.4,77.2174]
[1730692208225,1.033,2478.7,2478.4,77.2174]
[1730692208430,5.24702774,2478.9,2478.5,0.15611354]
[1730692208637,5.87639774,2478.9,2478.7,0.40365]
[1730692208936,5.87639774,2478.9,2478.4,78.67176391]
[1730692208937,6.28001774,2478.9,2478.8,1.3082]
[1730692209940,5.69516391,2478.9,2478.8,1.71184]
[1730692210135,5.69516391,2478.9,2478.8,1.3082]
[1730692210433,3.2078,2478.9,2478.8,1.71184]
[1730692212633,1.85795391,2479.1,2478.8,1.71184]
[1730692212634,5.06574391,2479.2,2479.0,0.40361]
[1730692212839,1.033,2479.1,2479.0,0.40361]
[1730692214728,4.66216391,2479.2,2478.9,1.45436391]
[1730692214729,3.2078,2479.2,2478.9,1.45436391]
[1730692214937,3.2078,2479.2,2479.1,0.40359]
[1730692216035,3.2078,2479.2,2479.1,5.89155391]
[1730692217731,0.40352,2479.6,2479.1,5.89155391]
[1730692217927,0.40353,2479.5,2479.4,0.40353]
[1730692218648,2.66449246,2479.7,2479.2,1.3417]
[1730692218839,2.66449246,2479.7,2479.5,0.40352]
[1730692219147,3.06799246,2479.7,2479.6,0.4409]
[1730692219645,7.10079246,2479.7,2479.6,0.4409]
[1730692220944,6.06779246,2479.7,2479.6,0.4409]
[1730692221239,7.10079246,2479.7,2479.6,0.4409]
[1730692222135,6.69729246,2479.7,2479.2,0.9096]
[1730692222334,1.45436391,2479.4,2479.3,0.82345]
[1730692222841,0.40353,2479.5,2479.3,0.82345]
[1730692223340,1.85788391,2479.6,2479.3,0.4199]
[1730692223547,1.45436391,2479.6,2479.3,0.4199]
[1730692223742,1.45436391,2479.6,2479.4,0.40354]
[1730692224246,1.85787391,2479.6,2479.4,0.40354]
[1730692224840,1.85788391,2479.6,2479.4,0.40354]
[1730692225748,1.45436391,2479.6,2479.3,0.4199]
[1730692226041,1.85788391,2479.6,2479.3,0.4199]
[1730692226247,1.85788391,2479.6,2479.3,0.82344]
[1730692226547,1.85788391,2479.6,2479.4,0.40354]
[1730692228343,0.40354,2479.4,2479.3,0.4199]
[1730692228546,1.45436391,2479.4,2479.3,0.82346]
[1730692228747,1.85790391,2479.4,2479.3,0.4199]
[1730692228940,2.31730391,2479.4,2479.3,0.4199]
[1730692230147,2.31730391,2479.4,2478.6,2.46353391]
[1730692230148,9.15516391,2479.4,2478.6,2.46353391]
[1730692230355,1.45436391,2479.1,2479.0,0.4036]
[1730692230552,0.40356,2479.3,2478.9,0.4184]
[1730692231251,0.40356,2479.3,2479.2,0.40357]
[1730692232640,0.40356,2479.3,2479.1,0.40358]
[1730692232844,2.49808942,2479.4,2479.2,0.40357]
[1730692233052,2.49808942,2479.4,2479.3,0.463]
[1730692233440,6.53168942,2479.4,2479.3,0.463]
[1730692233943,6.53168942,2479.4,2478.9,0.40362]
[1730692233944,0.4036,2479.1,2478.9,0.40362]
[1730692234248,1.85794391,2479.2,2479.0,0.40361]
[1730692235451,0.40358,2479.2,2479.0,0.40361]
[1730692236158,1.45436391,2479.3,2478.9,0.4569]
[1730692236346,0.40357,2479.2,2479.1,1.85795391]
[1730692236551,3.79212551,2479.4,2479.3,0.40356]
[1730692236853,7.82572551,2479.4,2479.3,0.40356]
[1730692237357,7.82572551,2479.4,2479.3,0.4398]
[1730692238356,4.21437551,2479.4,2479.2,0.4192]
[1730692238556,0.40356,2479.3,2479.2,0.4192]
[1730692238960,1.85792391,2479.3,2479.2,0.4192]
[1730692239155,0.40359,2479.1,2479.0,0.4398]
[1730692239351,0.40359,2479.1,2479.0,0.8766]
[1730692239754,0.40359,2479.1,2479.0,1.28021]
[1730692240648,0.40359,2479.1,2479.0,0.8766]
[1730692240858,1.45436391,2479.3,2479.0,0.8766]
[1730692241047,0.40359,2479.2,2479.0,1.2802]
[1730692241856,1.45436391,2479.3,2479.0,1.2802]
[1730692242349,0.40359,2479.1,2479.0,1.28021]
[1730692242752,9.72776391,2479.1,2478.4,1.45436391]
[1730692242957,0.40364,2478.8,2478.7,0.44]
[1730692243255,1.89916391,2479.0,2478.8,0.40364]
[1730692243256,0.40361,2479.0,2478.8,0.40364]
[1730692243453,0.40361,2479.0,2478.9,0.4263]
[1730692243663,2.48636391,2479.1,2478.9,0.8597]
[1730692243955,0.40361,2479.0,2478.9,0.8597]
[1730692245258,0.40364,2478.8,2478.7,0.44]
[1730692245552,3.61142,2478.9,2478.7,0.84365]
[1730692246553,0.40362,2478.9,2478.7,0.84365]
[1730692246754,0.40362,2478.9,2478.7,0.44]
[1730692246949,0.40362,2478.9,2478.7,0.84365]
[1730692247154,2.88996391,2479.1,2478.9,0.40362]
[1730692247352,1.4356,2479.1,2479.0,1.3407]
[1730692248460,2.88996391,2479.1,2479.0,1.3407]
[1730692249363,2.88996391,2479.1,2479.0,0.4298]
[1730692250763,1.4356,2479.1,2479.0,0.4298]
[1730692251564,1.4356,2479.1,2479.0,76.7648]
[1730692253965,5.4692,2479.1,2479.0,76.7648]
[1730692254467,7.34646391,2479.1,2479.0,76.335]
[1730692255661,10.55426391,2479.1,2479.0,76.335]
[1730692256965,10.55426391,2479.1,2479.0,74.08694529]
[1730692257368,14.23336335,2479.1,2479.0,74.08694529]
[1730692257564,10.55426391,2479.1,2479.0,73.96172716]
[1730692260665,14.23336335,2479.1,2479.0,73.96172716]
[1730692261061,10.13136391,2479.1,2479.0,73.96172716]
[1730692261773,10.13136391,2479.1,2479.0,65.42973134]
[1730692262873,9.09936391,2479.1,2479.0,65.42973134]
[1730692263068,10.13136391,2479.1,2479.0,65.42973134]
[1730692263262,10.13136391,2479.1,2479.0,64.20323134]
[1730692267264,10.13136391,2479.1,2479.0,61.76123134]
[1730692267469,15.26482726,2479.1,2479.0,57.82113585]
[1730692267673,11.58572782,2479.1,2479.0,57.71958585]
[1730692267980,15.81400968,2479.1,2479.0,57.44104585]
[1730692268279,15.81400968,2479.1,2479.0,45.33430207]
[1730692268469,11.58572782,2479.1,2479.0,44.38439207]
[1730692268676,20.54815283,2479.1,2479.0,25.04309207]
[1730692268880,15.79133573,2479.1,2479.0,25.04309207]
[1730692269185,11.58572782,2479.1,2479.0,25.04309207]
[1730692269370,15.79054571,2479.1,2479.0,25.04309207]
[1730692269575,14.3361818,2479.1,2479.0,25.04309207]
[1730692270070,10.13136391,2479.1,2479.0,25.04309207]
[1730692271173,13.81119303,2479.1,2479.0,25.04309207]
[1730692272479,9.77759303,2479.1,2479.0,25.04309207]
[1730692272882,13.81119303,2479.1,2479.0,25.04309207]
[1730692273698,9.77759303,2479.1,2479.0,25.04309207]
[1730692273884,13.81119303,2479.1,2479.0,25.04309207]
[1730692274074,10.13136391,2479.1,2479.0,25.04309207]
[1730692274276,6.09776391,2479.1,2479.0,25.04309207]
[1730692274477,10.13136391,2479.1,2479.0,25.04309207]
[1730692275378,6.09776391,2479.1,2479.0,25.04309207]
[1730692275778,5.06576391,2479.1,2479.0,25.04309207]
[1730692275973,4.6424,2479.1,2479.0,25.04309207]
[1730692276487,6.09676391,2479.1,2479.0,25.04309207]
[1730692278183,1.031,2479.1,2479.0,25.04309207]
[1730692278379,0.3339,2479.1,2479.0,25.04309207]
[1730692278686,0.7375,2479.1,2479.0,25.04309207]
[1730692280385,5.39966391,2479.1,2479.0,25.04309207]
[1730692282485,2.19186391,2479.1,2479.0,25.04309207]
[1730692288086,11.35965694,2479.1,2479.0,19.93645794]
[1730692288291,9.01222782,2479.1,2479.0,19.93645794]
[1730692290186,10.76566391,2479.1,2479.0,19.93645794]
[1730692290489,15.05224538,2479.1,2479.0,19.93645794]
[1730692291081,15.30264538,2479.1,2479.0,19.93645794]
[1730692291282,14.77607717,2479.1,2479.0,19.93645794]
[1730692293484,14.77607717,2479.1,2479.0,16.18253332]
[1730692293691,16.23044108,2479.1,2479.0,14.55656208]
[1730692293890,16.75700929,2479.1,2479.0,14.55656208]
[1730692294586,15.30264538,2479.1,2479.0,14.55656208]
[1730692296199,16.75700929,2479.1,2479.0,14.55656208]
[1730692296393,12.01712782,2479.1,2479.0,13.63617972]
[1730692296785,16.75767028,2479.1,2479.0,13.63617972]
[1730692297082,12.01712782,2479.1,2479.0,13.63617972]
[1730692297279,16.75772697,2479.1,2479.0,13.63617972]
[1730692298285,13.54992697,2479.1,2479.0,13.63617972]
[1730692298495,16.75772697,2479.1,2479.0,13.63617972]
[1730692299190,8.80932782,2479.1,2479.0,13.63617972]
[1730692299587,12.01712782,2479.1,2479.0,13.63617972]
[1730692300094,8.80932782,2479.1,2479.0,13.63617972]
[1730692300292,12.01712782,2479.1,2479.0,13.63617972]
[1730692300595,16.75772697,2479.1,2479.0,13.63617972]
[1730692300894,12.01712782,2479.1,2479.0,13.63617972]
[1730692302288,12.01712782,2479.1,2479.0,9.64727972]
[1730692302593,16.75772697,2479.1,2479.0,7.03027972]
[1730692302787,16.75772697,2479.1,2478.7,0.4275]
[1730692302994,8.34889365,2478.8,2478.6,0.4572]
[1730692303294,8.63752974,2478.7,2477.8,0.4038]
[1730692303483,3.2078,2478.4,2478.1,0.4296]
[1730692303689,1.85810391,2478.2,2478.1,0.4296]
[1730692306990,1.45436391,2478.2,2478.1,0.4296]
[1730692307291,1.85810391,2478.2,2478.1,0.4296]
[1730692308297,1.45436391,2478.2,2478.1,4.4648]
[1730692308992,2.88808391,2478.3,2478.1,4.4648]
[1730692309191,2.88808391,2478.3,2478.1,0.4296]
[1730692311794,0.40374,2478.2,2478.1,0.4296]
[1730692312187,0.40374,2478.2,2478.1,4.4648]
[1730692313499,1.85810391,2478.2,2478.1,4.4648]
[1730692315790,0.40374,2478.2,2478.1,4.4648]
[1730692316404,1.85807391,2478.4,2478.2,0.40373]
[1730692316597,1.03,2478.4,2478.3,4.9193]
[1730692316901,2.19066391,2478.4,2478.3,0.8841]
[1730692317093,2.19066391,2478.4,2478.3,4.9193]
[1730692321492,2.19066391,2478.4,2478.3,0.4292]
[1730692324398,0.40372,2478.3,2478.2,0.4406]
[1730692324700,2.30788391,2478.3,2478.2,0.87]
[1730692326297,2.30788391,2478.3,2478.2,0.4294]
[1730692327200,0.40374,2478.2,2478.1,0.4296]
[1730692327502,0.40375,2478.1,2477.8,0.8801]
[1730692327706,1.85813391,2478.0,2477.8,0.8801]
[1730692329010,1.45436391,2478.0,2477.8,0.8801]
[1730692329303,1.85814391,2478.0,2477.8,0.8801]
[1730692329497,1.45436391,2478.0,2477.8,0.8801]
[1730692329699,0.40378,2477.9,2477.8,0.8801]
[1730692330099,0.40378,2477.9,2477.8,4.9161]
[1730692330701,1.85814391,2477.9,2477.8,4.9161]
[1730692331008,1.88536391,2477.9,2477.4,0.62895252]
[1730692331207,1.88536391,2477.9,2477.5,1.3585]
[1730692331208,1.45436391,2477.6,2477.5,1.3585]
[1730692331514,1.85819391,2477.6,2477.5,1.3585]
[1730692331699,1.85819391,2477.6,2477.5,5.3945]
[1730692332407,1.85819391,2477.6,2477.5,0.4565]
[1730692332610,1.85819391,2477.6,2477.5,4.9148]
[1730692333304,1.85819391,2477.6,2477.5,0.4565]
[1730692334209,1.45436391,2477.6,2477.5,0.4565]
[1730692334404,1.85819391,2477.6,2477.5,0.4565]
[1730692335309,0.40383,2477.6,2477.5,0.4565]
[1730692339413,0.85613,2477.6,2477.5,0.4565]
[1730692345810,0.4523,2477.6,2477.5,0.4565]
[1730692346013,0.85613,2477.6,2477.5,0.4565]
[1730692355315,2.31096524,2477.6,2477.5,0.4565]
[1730692372449,0.40385,2477.5,2477.3,0.40388]
[1730692372748,1.45483524,2477.4,2477.3,0.85958]
[1730692372950,1.45483524,2477.4,2477.3,1.59602327]
[1730692373147,1.45483524,2477.4,2477.3,5.63282327]
[1730692373349,1.45483524,2477.4,2477.3,5.63283163]
[1730692374249,1.85870524,2477.4,2477.3,5.63283163]
[1730692375148,1.85870524,2477.4,2477.3,6.56148922]
[1730692375651,1.85870524,2477.4,2477.3,2.52468922]
[1730692375952,1.85870524,2477.4,2477.3,6.56148922]
[1730692376349,1.85870524,2477.4,2477.3,2.52468922]
[1730692376744,1.85870524,2477.4,2477.3,4.89638]
[1730692376943,1.85870524,2477.4,2477.3,6.56254558]
[1730692377557,1.85870524,2477.4,2477.3,7.06768071]
[1730692378049,1.85870524,2477.4,2477.3,6.56254558]
[1730692378253,1.85870524,2477.4,2477.3,7.067683]
[1730692379153,1.85870524,2477.4,2477.3,8.22939433]
[1730692379750,1.85870524,2477.4,2477.3,7.82551433]
[1730692379952,1.85870524,2477.4,2477.3,3.78871433]
[1730692380255,1.85870524,2477.4,2477.3,3.78934187]
[1730692380455,1.85870524,2477.4,2477.3,0.4557]
[1730692380657,1.85870524,2477.4,2477.3,2.62769759]
[1730692380958,1.85870524,2477.4,2477.3,3.55709337]
[1730692381747,1.85870524,2477.4,2477.3,1.66686045]
[1730692382155,5.54543498,2477.4,2477.3,1.66686045]
[1730692382344,5.54543498,2477.4,2477.3,1.08599567]
[1730692382544,1.85870524,2477.4,2477.3,1.08599567]
[1730692382851,1.90713524,2477.6,2477.3,9.84027242]
[1730692383057,0.40386,2477.5,2477.4,1.65396315]
[1730692383250,0.40386,2477.5,2477.4,3.44194317]
[1730692383560,1.90713524,2477.6,2477.4,3.44194317]
[1730692383748,2.31097524,2477.6,2477.5,0.73726315]
[1730692383946,1.90713524,2477.6,2477.5,0.73726315]
[1730692384152,2.31096524,2477.6,2477.5,0.73726315]
[1730692384852,2.31096524,2477.6,2477.5,1.14111315]
[1730692385053,2.31096524,2477.6,2477.5,1.14101503]
[1730692385254,0.4523,2477.6,2477.5,1.14101503]
[1730692385449,1.45483524,2477.7,2477.6,0.40383]
[1730692385658,2.29475524,2477.7,2477.5,1.14100503]
[1730692385860,2.29475524,2477.7,2477.5,0.56039104]
[1730692386060,1.89093524,2477.7,2477.5,0.56039104]
[1730692386261,0.40383,2477.6,2477.5,0.56039104]
[1730692386659,4.2358,2477.9,2477.5,4.036]
[1730692386660,4.66263524,2477.9,2477.5,4.036]
[1730692386859,5.57076498,2478.2,2477.8,1.45483524]
[1730692387054,0.83294,2478.2,2478.0,3.61156]
[1730692387358,2.28777524,2478.2,2478.0,3.61156]
[1730692387561,1.88403524,2478.2,2478.0,3.61156]
[1730692387765,1.88403524,2478.2,2478.1,0.40375]
[1730692388060,1.88403524,2478.2,2478.1,1.33256963]
[1730692388254,1.88403524,2478.2,2478.1,5.17598767]
[1730692388658,2.28777524,2478.2,2478.1,5.17598767]
[1730692388852,2.28777524,2478.2,2478.1,5.01946227]
[1730692389057,2.28777524,2478.2,2478.1,4.59533066]
[1730692389252,2.28777524,2478.2,2478.1,5.17529633]
[1730692389253,1.88403524,2478.2,2478.1,5.17529633]
[1730692389459,1.45483524,2478.2,2478.1,5.17529633]
[1730692389656,1.90153524,2478.4,2478.3,0.40372]
[1730692389859,0.4467,2478.4,2478.3,3.76779771]
[1730692390359,0.8504,2478.4,2478.3,3.61152]
[1730692390666,2.30523524,2478.4,2478.3,3.2078]
[1730692390864,2.30523524,2478.4,2478.3,3.61152]
[1730692391269,2.30523524,2478.4,2478.3,3.2078]
[1730692391463,0.40375,2478.1,2478.0,4.06896]
[1730692391657,1.85858524,2478.1,2478.0,4.80405596]
[1730692391965,1.85858524,2478.1,2478.0,8.83925596]
[1730692392370,1.85858524,2478.1,2478.0,5.63145596]
[1730692392666,1.45483524,2478.1,2477.7,3.2078]
[1730692392962,0.4038,2477.8,2477.7,4.06971]
[1730692393167,0.4038,2477.8,2477.7,0.86192]
[1730692393361,0.40382,2477.7,2477.5,0.40384]
[1730692393553,0.40382,2477.7,2477.3,3.2078]
[1730692393554,0.40384,2477.6,2477.4,1.29075]
[1730692393757,1.45483524,2477.5,2477.4,1.29075]
[1730692393959,1.45483524,2477.5,2477.4,1.446713]
[1730692394158,1.45483524,2477.5,2477.4,5.483513]
[1730692395567,1.45483524,2477.5,2477.4,9.27014802]
[1730692395768,1.45483524,2477.5,2477.4,8.691313]
[1730692396161,1.85868524,2477.5,2477.4,4.22571947]
[1730692396464,1.85868524,2477.5,2477.4,3.2078]
[1730692396668,2.27718524,2477.5,2477.4,3.61167]
[1730692396872,2.27718524,2477.5,2477.4,3.2078]
[1730692397958,3.32817048,2477.5,2477.1,0.8458]
[1730692398270,1.85873524,2477.2,2477.1,0.84581]
[1730692399266,1.45483524,2477.2,2477.1,0.84581]
[1730692399466,1.45483524,2477.3,2477.2,0.4039]
[1730692399877,1.45483524,2477.4,2477.3,0.40387]
[1730692400168,1.45483524,2477.4,2477.3,3.61167]
[1730692400363,1.45483524,2477.4,2477.3,7.64847]
[1730692400666,1.85870524,2477.4,2477.3,7.64847]
[1730692401366,1.45483524,2477.4,2477.3,0.40387]
[1730692401671,0.86572,2477.7,2477.6,0.40383]
[1730692401870,0.86572,2477.7,2477.6,3.61163]
[1730692402564,2.32055524,2477.7,2477.6,3.2078]
[1730692403269,2.32055524,2477.7,2477.6,3.61163]
[1730692404067,2.32055524,2477.7,2477.6,0.40383]
[1730692404276,1.91673524,2477.7,2477.6,0.40383]
[1730692404465,2.32055524,2477.7,2477.5,3.2078]
[1730692404667,0.85183,2477.6,2477.5,3.61165]
[1730692404867,0.448,2477.6,2477.5,3.61165]
[1730692406977,0.448,2477.6,2477.5,0.40385]
[1730692407879,0.448,2477.6,2477.5,0.84505]
[1730692411078,0.448,2477.6,2477.5,1.30695]
[1730692412684,0.40382,2477.8,2477.7,0.40381]
[1730692412874,0.84602,2477.8,2477.7,0.40381]
[1730692413379,0.4422,2477.8,2477.7,0.40381]
[1730692413579,1.4298,2477.9,2477.7,0.40381]
[1730692413776,1.026,2477.9,2477.5,0.9031]
[1730692414078,0.40382,2477.7,2477.6,0.40383]
[1730692414384,1.85864524,2477.8,2477.7,0.40382]
[1730692417881,0.40382,2477.7,2477.6,0.40382]
[1730692418387,0.8505,2478.0,2477.9,0.40378]
[1730692418388,1.25427,2478.0,2477.9,0.40378]
[1730692418677,0.8505,2478.0,2477.9,3.61158]
[1730692419182,0.4422,2478.1,2478.0,0.40377]